Cogmind - Beta 13 @@@ ROGUE MODE // 2024.05.12 @ 05:57:20 Player: A Moose Result: Destroyed by X-77 Beamer with Gatling Laser Performance ------------- Evolutions (6) 3000 Regions Visited (15) 3000 Robots Destroyed (189) 945 Value Destroyed (6977) 6977 Prototype IDs (22) 440 Alien Tech Used (0) 0 Bonus (2613) 2613 TOTAL SCORE: 16975 Bonus ------- High Alert Combat Kills 721 Follower Combat Kills 1463 Entered DSFs 500 Friendly Fire -71 Cogmind --------- Core Integrity 0/1150 Matter 35/300 Energy 58/300 System Corruption 8% Temperature Cool (36) Movement Core (250) Ox4 Location -4/Armory Parts ------- > --- POWER (1) -------- (None) > --- PROPULSION (4) --- (None) > --- UTILITY (10) ----- Compact Battery Enhanced Optical Array Advanced Signal Interpreter Improved Target Analyzer Core Analyzer Advanced Focal Shield > --- WEAPON (4) ------- Light Antimatter Cannon Light Antimatter Cannon > --- INVENTORY (5) ---- Improved Gyrokinetic Inverter Peak State ------------ > --- POWER ------------ Fission Core > --- PROPULSION ------- Armored Medium Treads Myomer Leg Armored Huge Wheel > --- UTILITY ---------- Improved Heat Sink Enhanced Optical Array Advanced Sensor Array Advanced Signal Interpreter Advanced Terrain Scanner Advanced Melee Analysis Suite Improved Target Analyzer Improved Medium Armor Plating Advanced Hacking Suite Improved System Shield > --- WEAPON ----------- Disruptor Cannon Coil Gun Coil Gun Heavy Gauss Cannon > --- INVENTORY -------- Light Antimatter Reactor Myomer Leg Improved Gyrokinetic Inverter Compact Battery Advanced Focal Shield [Rating: 100] Favorites ----------- Power Heavy Ion Engine Engine Heavy Ion Engine Power Core Fission Core Reactor Light Antimatter Reactor Propulsion Wheel Treads Armored Medium Treads Leg Carbon-fiber Leg Wheel Wheel Hover Unit Antigrav System Utility Improved Signal Interpreter Device Advanced Sensor Array Storage Huge Storage Unit Processor Improved Signal Interpreter Hackware Hacking Suite Protection Reactive Plating Weapon Assault Cannon Energy Gun Wave Gun Energy Cannon Compact Ion Cannon Ballistic Gun Gauss Rifle Ballistic Cannon Assault Cannon Launcher Precision Grenade Launcher Special Weapon Plasma Cutter Slashing Weapon Phasing Sabre Piercing Weapon Spear Build | -11 -10 -10 -10 -9 -8 -8 -8 -6 -6 -6 -6 -5 -5 -4 -4 ------- Run | Yrd Mat Min Exi Min Mat Sto Rec Fac Was Fac DSF Fac Ext Fac Arm Slots Evolved 12 | . . . . . 4 . . 4 . . . 2 . 2 . Power . | . . . . . . . . . . . . . . . . Propulsion 2 | . . . . . . . . . . . . . . 2 . Utility 8 | . . . . . 3 . . 3 . . . 2 . . . Weapon 2 | . . . . . 1 . . 1 . . . . . . . Parts Attached 243 | 9 7 8 . 3 15 11 . 76 3 . 8 31 40 9 23 Power 21 | 1 1 2 . . 1 . . 8 . . . 3 3 1 1 Engine 10 | 1 1 2 . . 1 . . 4 . . . 1 . . . Core 10 | . . . . . . . . 4 . . . 2 3 1 . Reactor 1 | . . . . . . . . . . . . . . . 1 Propulsion 52 | 4 3 4 . . 1 1 . 11 2 . 3 7 9 3 4 Treads 7 | 2 . 2 . . . . . . . . . . 2 . 1 Leg 6 | . . . . . . . . . . . 2 1 . 1 2 Wheel 33 | 2 3 2 . . 1 1 . 11 2 . . 6 4 . 1 Hover 6 | . . . . . . . . . . . 1 . 3 2 . Flight . | . . . . . . . . . . . . . . . . Utility 97 | 1 2 . . . 8 4 . 36 1 . 4 14 14 3 10 Device 38 | . . . . . 2 2 . 10 1 . 1 12 3 2 5 Storage 6 | 1 1 . . . . . . 1 . . 1 . . . 2 Processor 13 | . 1 . . . 1 . . 5 . . . 2 2 . 2 Hackware 8 | . . . . . 1 . . 4 . . 1 . 2 . . Protection 32 | . . . . . 4 2 . 16 . . 1 . 7 1 1 Artifact . | . . . . . . . . . . . . . . . . Weapon 73 | 3 1 2 . 3 5 6 . 21 . . 1 7 14 2 8 Energy Gun 10 | 1 1 1 . 1 . . . 1 . . . 3 2 . . Energy Cannon 6 | . . . . . . 1 . 3 . . . 1 . . 1 Ballistic Gun 35 | 2 . 1 . 1 1 2 . 13 . . . 1 8 2 4 Ballistic Cannon 13 | . . . . 1 2 2 . 1 . . . 2 2 . 3 Launcher 5 | . . . . . 2 . . 3 . . . . . . . Special Weapon 1 | . . . . . . 1 . . . . . . . . . Impact Weapon . | . . . . . . . . . . . . . . . . Slashing Weapon 2 | . . . . . . . . . . . . . 2 . . Piercing Weapon 1 | . . . . . . . . . . . 1 . . . . Special Melee Weapon . | . . . . . . . . . . . . . . . . Unidentified Prototypes 9 | . . . . . 3 3 . 2 . . . . . . 1 Parts Lost 121 | . 3 6 . . 3 1 . 32 8 . . 10 30 11 17 Power 13 | . 1 2 . . . . . 4 . . . 1 2 1 2 Propulsion 33 | . 1 2 . . 1 . . 6 3 . . 4 9 3 4 Utility 40 | . . . . . 1 1 . 15 3 . . 2 8 4 6 Weapon 35 | . 1 2 . . 1 . . 7 2 . . 3 11 3 5 Highest Loss Streak 16 | . 3 5 . . 2 1 . 14 4 . . 6 16 11 16 To Critical Strikes 1 | . . . . . . . . . . . . . . . 1 Average Slot Usage (%) 91 | . 95 95 71 99 99 99 100 93 63 13 45 88 84 73 75 Engine 5 | . 14 11 14 14 9 9 9 4 2 . . 3 . . . Core 1 | . . . . . . . . 1 . . . 1 4 4 3 Wheel 13 | . 20 26 28 28 17 18 18 12 10 . . 7 4 . 4 Device 8 | . . . . . 9 6 9 7 7 . 3 20 13 8 12 Storage 7 | . 14 14 14 14 9 9 9 5 5 . 2 5 2 . 2 Processor 14 | . 11 14 14 14 9 9 9 16 18 13 13 16 18 21 21 Hackware 6 | . . . . . 7 9 9 7 . . 5 5 11 14 9 Protection 6 | . . . . . 10 10 9 9 4 . 4 3 3 4 . Energy Gun 1 | . 4 4 . 11 . . . . . . . 5 2 . . Energy Cannon 1 | . . . . . . . . 3 . . . 1 2 . 3 Ballistic Gun 9 | . 23 21 . 14 1 6 9 14 7 . . 1 2 7 5 Ballistic Cannon 4 | . . . . 1 18 11 9 1 . . . 2 2 . 2 Launcher 2 | . . . . . 6 1 . 3 5 . . . . . . Special Weapon 1 | . . . . . . 7 9 1 . . . . . . . Naked Turns . | . . . . . . . . . . . . . . . . Heaviest Build 132 | 14 89 89 85 90 112 112 109 132 118 . 26 62 68 33 51 Greatest Support 43 | 40 40 40 26 26 32 32 32 32 22 3 30 30 43 34 28 Greatest Overweight (x) 10 | . 8 4 3 3 6 3 3 10 5 . . 5 6 . 1 Average Overweight (x) 2 | . 3 3 3 3 3 3 3 5 1 . . 1 . . . Largest Inventory Capacity 25 | 8 25 25 25 25 25 25 25 25 25 5 15 15 15 5 5 Average Capacity 20 | 7 20 25 25 25 25 25 25 24 21 5 8 15 10 5 5 Most Carried 25 | 5 21 21 23 25 25 25 25 25 25 5 7 15 15 5 5 Average Carried 18 | 3 9 19 21 23 23 24 25 22 20 5 5 12 9 4 3 Final Capacity 25 | 8 25 25 25 25 25 25 25 25 5 5 15 15 5 5 5 Final Carried 25 | 4 21 19 23 25 24 25 25 25 5 5 7 15 5 4 1 Class Distribution -------------------- 19% | Mutant 19% | Scavenger-Skirmisher 16% | Scavenger-Gunner 8% | Scavenger-Mutant 7% | Commander-Skirmisher 5% | Commander-Tank 3% | Gunner 3% | Hacker-Scout 3% | Skirmisher 3% | Scavenger-Tank Dominant Class ---------------- Mutant | -10/Materials Mutant | -10/Mines Mutant | -10/Exiles Mutant | -9/Mines Scavenger-Skirmisher | -8/Materials Scavenger-Skirmisher | -8/Storage Scavenger-Skirmisher | -8/Recycling Scavenger-Gunner | -6/Factory Gunner | -6/Waste Mutant | -6/Factory Scavenger-Mutant | -6/DSF Scavenger-Mutant | -5/Factory Scavenger-Mutant | -5/Extension Hacker-Scout | -4/Factory Scavenger-Skirmisher | -4/Armory Resources | -11 -10 -10 -10 -9 -8 -8 -8 -6 -6 -6 -6 -5 -5 -4 -4 ----------- Run | Yrd Mat Min Exi Min Mat Sto Rec Fac Was Fac DSF Fac Ext Fac Arm Matter Collected 7344 | 183 724 169 . 49 896 467 119 2705 . . 160 553 859 . 460 Remotely . | . . . . . . . . . . . . . . . . Salvage Created 8237 | . 848 211 . 143 784 469 350 2956 247 . . 566 1420 13 230 Parts 402 | . 41 9 . 3 38 30 17 164 4 . . 32 56 . 8 Haulers Intercepted 8 | . 2 . . . 3 2 . 1 . . . . . . . Recyclers Shooed 15 | . 2 . . . 1 . . 7 . . . 4 1 . . Parts Field Recycled . | . . . . . . . . . . . . . . . . Retrieved Matter . | . . . . . . . . . . . . . . . . Parts Self-Destructed . | . . . . . . . . . . . . . . . . Prevented . | . . . . . . . . . . . . . . . . Kills | -11 -10 -10 -10 -9 -8 -8 -8 -6 -6 -6 -6 -5 -5 -4 -4 ------- Run | Yrd Mat Min Exi Min Mat Sto Rec Fac Was Fac DSF Fac Ext Fac Arm Combat Hostiles Destroyed 130 | . 10 4 . 1 15 8 7 53 1 . . 8 16 . 7 Melee 4 | . . . . . . . . . . . . 1 3 . . Guns 65 | . 10 4 . 1 4 1 2 31 1 . . . 8 . 3 Cannons 56 | . . . . . 9 7 5 19 . . . 7 5 . 4 AOE 5 | . . . . . 2 . . 3 . . . . . . . Classes Destroyed 20 | . 6 2 . 1 1 2 1 5 1 . . . . . 1 Worker 15 | . 3 . . . . 2 . 8 . . . 2 . . . Builder 7 | . . . . . . 1 . 1 . . . 2 3 . . Tunneler 3 | . . . . . . . . 1 . . . 2 . . . Hauler 8 | . 2 . . . 3 2 . 1 . . . . . . . Recycler 10 | . 2 1 . 1 2 . . . . . . 2 2 . . Carrier 1 | . . . . . . . . 1 . . . . . . . Operator 3 | . 1 . . . . . . 2 . . . . . . . Watcher 13 | . 3 . . . 2 2 . 3 . . . 1 2 . . Swarmer 19 | . . 2 . . 3 . 1 7 . . . 4 . . 2 Saboteur 1 | . . . . . . . . 1 . . . . . . . Grunt 49 | . 10 . . . 6 2 2 24 . . . . 5 . . Brawler 3 | . . . . 1 1 . . 1 . . . . . . . Duelist 3 | . . . . . 1 . 1 1 . . . . . . . Protector 1 | . . . . . . . . 1 . . . . . . . Sentry 22 | . . 2 . . 4 5 2 4 . . . 1 4 . . Hunter 10 | . . . . . . 1 . 4 . . . 2 3 . . Programmer 17 | . . . . . . . 1 9 . . . 1 2 . 4 Heavy 1 | . . . . . . . . . . . . . . . 1 Behemoth 1 | . . . . . . . . 1 . . . . . . . Compactor 1 | . . . . . . . . . 1 . . . . . . Thug 1 | . . . . . . . . . . . . . 1 . . Guerrilla 1 | . . . . . . . . . . . . . 1 . . Best Kill Streak 6 | . 5 2 . 1 3 4 5 5 1 . . 6 5 . 4 Combat Bots Only 5 | . 2 2 . 1 3 2 5 4 1 . . 5 4 . 4 Max Kills in Single Turn 3 | . 1 1 . 1 2 2 1 3 1 . . 2 2 . 1 Gunslinging . | . . . . . . . . . . . . . . . . Exploded 1 | . . . . . 1 . . 1 . . . . . . . Melee 1 | . . . . . . . . . . . . 1 1 . . Uniques/NPCs Destroyed . | . . . . . . . . . . . . . . . . Combat | -11 -10 -10 -10 -9 -8 -8 -8 -6 -6 -6 -6 -5 -5 -4 -4 -------- Run | Yrd Mat Min Exi Min Mat Sto Rec Fac Was Fac DSF Fac Ext Fac Arm Hostile Shots Fired 1437 | . 65 45 . 1 53 27 11 539 4 . 21 106 236 116 213 Missed 428 | . 14 10 . . 14 9 5 164 . . 6 30 69 32 75 Damage Taken 17657 | . 645 462 . 10 538 327 105 5511 288 . 320 1476 3643 1511 2821 Core 3194 | . 159 43 . . 60 79 . 578 19 . 112 308 679 690 467 Absorbed by Shields 626 | . . . . . . . . 580 . . . . . 46 . Redirected to Shielding 7 | . . . . . 7 . . . . . . . . . . Ignored by Resistances 579 | . . . . . 9 17 . 105 . . . 173 2 . 273 Regen/Repaired (Parts) 525 | . . . . . . . . 525 . . . . . . . Core Remaining (%) 42 | 100 . . . 19 . . 74 . . . 16 . 1 . . Volleys Fired 543 | . 64 20 . 4 56 35 11 196 9 . . 21 88 7 32 Largest 4 | . 2 2 . 2 3 3 3 4 4 . . 3 4 3 3 Hottest 277 | . 70 70 . 60 123 118 79 206 120 . . 183 277 103 181 Shots Fired 1199 | . 128 25 . 8 140 75 23 484 29 . . 50 142 21 74 Gun 727 | . 128 25 . 8 25 14 11 324 23 . . 19 100 21 29 Cannon 434 | . . . . . 110 52 11 143 . . . 31 42 . 45 Launcher 31 | . . . . . 5 3 . 17 6 . . . . . . Special 7 | . . . . . . 6 1 . . . . . . . . Kinetic 960 | . 107 20 . 4 135 66 22 356 23 . . 34 101 21 71 Thermal 200 | . 21 5 . 4 . 6 1 109 . . . 16 38 . . Explosive 31 | . . . . . 5 3 . 17 6 . . . . . . Electromagnetic 8 | . . . . . . . . 2 . . . . 3 . 3 Robot Hit Streak 25 | . 8 8 . 8 10 9 7 25 13 . . 5 8 6 5 Robot Miss Streak 10 | . 9 3 . 3 4 3 2 4 2 . . 10 5 4 5 Penetration Max 1 | . . . . . . . . 1 . . . . 1 1 1 Secondary Targets 5 | . 4 . . . . . . 1 . . . . . . . Max Gunslinging Chain 1 | . 1 . . . . . . 1 . . . . . . . Shots Hit Robots 765 | . 75 18 . 5 71 38 14 313 23 . 3 53 108 10 34 Core Hits 393 | . 37 7 . 4 32 20 8 152 9 . 1 49 59 3 12 Critical Kills 10 | . . . . . . . . 9 . . . . 1 . . Critical Parts Destroyed 28 | . 2 . . . 1 . . 16 . . . . 5 4 . Critical Strikes 62 | . 4 1 . . 4 3 . 27 2 . 1 2 10 4 4 Burn 5 | . 2 1 . . . . . . . . . . 2 . . Destroy 41 | . 2 . . . 1 . . 25 2 . . . 7 4 . Blast 11 | . . . . . 3 2 . 2 . . . . . . 4 Sever 2 | . . . . . . 1 . . . . . . 1 . . Impale 3 | . . . . . . . . . . . 1 2 . . . Melee Attacks 56 | . . . . . . . . . . . 3 32 21 . . Impact . | . . . . . . . . . . . . . . . . Slashing 19 | . . . . . . . . . . . . . 19 . . Piercing 37 | . . . . . . . . . . . 3 32 2 . . Sneak Attacks 16 | . . . . . . . . . . . . 12 4 . . Combat Hostiles 1 | . . . . . . . . . . . . . 1 . . Follow-up Attacks . | . . . . . . . . . . . . . . . . Damage Inflicted 20814 | . 1199 235 . 86 1629 1052 403 8462 1324 . 80 1701 3282 106 1255 Guns 7990 | . 1068 235 . 86 200 190 157 3887 404 . . 199 1175 106 283 Cannons 7914 | . . . . . 1297 683 235 3013 . . . 531 1183 . 972 Explosions 2903 | . 131 . . . 132 158 . 1562 920 . . . . . . Melee 1975 | . . . . . . . . . . . 80 971 924 . . Ramming . | . . . . . . . . . . . . . . . . Kinetic 12133 | . 892 212 . 55 1497 873 392 4595 404 . . 548 1318 106 1241 Thermal 3656 | . 176 23 . 31 . 21 11 2240 . . . 182 972 . . Explosive 2903 | . 131 . . . 132 158 . 1562 920 . . . . . . Electromagnetic 147 | . . . . . . . . 65 . . . . 68 . 14 Impact . | . . . . . . . . . . . . . . . . Slashing 853 | . . . . . . . . . . . . . 853 . . Piercing 1122 | . . . . . . . . . . . 80 971 71 . . Highest Corruption 10 | . 1 1 1 1 . . . 10 10 10 10 1 4 . 8 Average Corruption 3 | . 1 1 1 1 . . . 4 10 10 10 1 2 . 5 Corruption Purged . | . . . . . . . . . . . . . . . . Corruption Blocked . | . . . . . . . . . . . . . . . . Effects 107 | . . 2 1 4 . . . 69 6 1 2 5 14 . 3 Message Errors 23 | . . . . . . . . 16 1 . . . 5 . 1 Matter Fused 25 | . . . . 1 . . . 17 . . 1 3 2 . 1 Heat Flow Errors 11 | . . . . 1 . . . 8 1 . . . 1 . . Energy Discharges 9 | . . . 1 1 . . . 4 1 . . . 2 . . Parts Rejected 2 | . . . . . . . . 1 1 . . . . . . Parts Fused 2 | . . . . . . . . 1 . . . . 1 . . Data Loss (minor) 14 | . . . . 1 . . . 8 . . . 2 2 . 1 Data Loss (major) 3 | . . 1 . . . . . 1 1 . . . . . . Misfires 4 | . . . . . . . . 4 . . . . . . . Alerts 5 | . . . . . . . . 3 . 1 . . 1 . . Misdirections 1 | . . . . . . . . . . . 1 . . . . Weapon Failures 8 | . . 1 . . . . . 6 1 . . . . . . Overload Shots . | . . . . . . . . . . . . . . . . Overflow Damage 596 | . 22 . . . 8 17 27 146 25 . . 189 129 . 33 Projectiles 178 | . . . . . 8 17 27 93 . . . . . . 33 Explosions 100 | . 22 . . . . . . 53 25 . . . . . . Melee 318 | . . . . . . . . . . . . 189 129 . . Knockbacks 51 | . . . . . 9 4 2 8 . . . 14 4 . 10 Impact . | . . . . . . . . . . . . . . . . Kinetic 45 | . . . . . 9 3 2 7 . . . 13 4 . 7 Secondary 6 | . . . . . . 1 . 1 . . . 1 . . 3 Self-Inflicted Damage 236 | . 16 . . . 9 20 . 115 76 . . . . . . Shots 10 | . 1 . . . 1 1 . 5 2 . . . . . . Rammed . | . . . . . . . . . . . . . . . . Targets Rammed . | . . . . . . . . . . . . . . . . Kicked . | . . . . . . . . . . . . . . . . Crushed . | . . . . . . . . . . . . . . . . Highest Temperature 491 | . 132 36 . 145 225 262 36 491 93 . . 255 190 101 59 Average Temperature 80 | . 41 19 . 75 50 59 15 103 56 . . 140 66 61 26 Received Heat Transfer 3479 | . 399 135 . 6 234 117 9 1319 . . 153 54 705 57 291 Effects 10 | . . . . . 1 . . 9 . . . . . . . Energy Bleed 3 | . . . . . 1 . . 2 . . . . . . . Interference 5 | . . . . . . . . 5 . . . . . . . Short Circuit 1 | . . . . . . . . 1 . . . . . . . Damage (major) 1 | . . . . . . . . 1 . . . . . . . Siege Activations . | . . . . . . . . . . . . . . . . Robots Corrupted . | . . . . . . . . . . . . . . . . Combat Hostiles . | . . . . . . . . . . . . . . . . Parts Fried . | . . . . . . . . . . . . . . . . Impact Corruptions . | . . . . . . . . . . . . . . . . Robots Melted . | . . . . . . . . . . . . . . . . Combat Hostiles . | . . . . . . . . . . . . . . . . Parts Melted 11 | . . 1 . . . . . 6 . . . . 4 . . Heat Transferred 5680 | . 666 136 . 75 . 74 37 2960 . . . 400 1332 . . Parts Sabotaged 4 | . . . . . . . . 4 . . . . . . . Parts Stolen . | . . . . . . . . . . . . . . . . Parts Stripped . | . . . . . . . . . . . . . . . . Power Chain Reactions . | . . . . . . . . . . . . . . . . Alert | -11 -10 -10 -10 -9 -8 -8 -8 -6 -6 -6 -6 -5 -5 -4 -4 ------- Run | Yrd Mat Min Exi Min Mat Sto Rec Fac Was Fac DSF Fac Ext Fac Arm Peak Influence 1118 | . 257 74 . 135 255 613 293 1118 401 243 170 279 437 205 438 Initial 391 | . . 19 . . . 49 170 60 391 238 170 88 99 141 61 Average 250 | . 122 50 . 70 109 384 188 454 371 238 170 102 153 150 149 Maximum Alert Level 4 | . 1 . . . 1 2 1 4 2 1 . 1 2 1 2 Low Security (%) 60 | 100 87 100 . 100 87 15 71 30 . . 100 88 62 99 78 Level 1 17 | . 12 . . . 12 33 28 15 90 100 . 11 37 . 14 Level 2 13 | . . . . . . 51 . 28 9 . . . . . 6 Level 3 7 | . . . . . . . . 23 . . . . . . . Level 4 . | . . . . . . . . 2 . . . . . . . Level 5 . | . . . . . . . . . . . . . . . . High Security . | . . . . . . . . . . . . . . . . Max Security . | . . . . . . . . . . . . . . . . Sterilizations 1 | . . . . . . . . . . . 1 . . . . Squads Dispatched 37 | . 1 . . . . 4 . 21 . . . 4 2 1 4 Investigation 5 | . . . . . . 2 . 2 . . . . 1 . . Extermination 11 | . . . . . . . . 7 . . . 2 . 1 1 Reinforcement 13 | . 1 . . . . . . 6 . . . 2 1 . 3 Assault 6 | . . . . . . 2 . 4 . . . . . . . Garrison 2 | . . . . . . . . 2 . . . . . . . Intercept . | . . . . . . . . . . . . . . . . Searches Triggered . | . . . . . . . . . . . . . . . . Construction Impeded 2 | . . . . . . . . 1 . . . 1 . . . Haulers Reinforced 2 | . . . . . . . . 2 . . . . . . . Active Scanning Responses . | . . . . . . . . . . . . . . . . Cargo Convoy Interrupts . | . . . . . . . . . . . . . . . . Stealth | -11 -10 -10 -10 -9 -8 -8 -8 -6 -6 -6 -6 -5 -5 -4 -4 --------- Run | Yrd Mat Min Exi Min Mat Sto Rec Fac Was Fac DSF Fac Ext Fac Arm Distress Signals 14 | . . . . . 3 3 . 4 . . . 2 1 . 1 Communications Jammed 6 | . . . . . . . . . . . . 3 3 . . Distress Signals 6 | . . . . . . . . . . . . 3 3 . . Times Spotted 272 | . 21 5 . 3 22 26 3 76 6 . 12 18 38 9 33 Peak Tracking Total 12 | . 3 2 . 3 6 12 2 6 5 . 8 6 7 10 11 Tactical Retreats 8 | . . . . 1 . . . 2 . . . 1 3 . 1 Traps | -11 -10 -10 -10 -9 -8 -8 -8 -6 -6 -6 -6 -5 -5 -4 -4 ------- Run | Yrd Mat Min Exi Min Mat Sto Rec Fac Was Fac DSF Fac Ext Fac Arm Traps Triggered 9 | . 1 . . . . . . 3 . . . 1 3 1 . Indirectly . | . . . . . . . . . . . . . . . . Trap Hack Attempts . | . . . . . . . . . . . . . . . . Triggered . | . . . . . . . . . . . . . . . . Disarmed 4 | . . . . . 4 . . . . . . . . . . Reprogrammed . | . . . . . . . . . . . . . . . . Reused . | . . . . . . . . . . . . . . . . Traps Extracted . | . . . . . . . . . . . . . . . . Installed . | . . . . . . . . . . . . . . . . Triggered . | . . . . . . . . . . . . . . . . Machines | -11 -10 -10 -10 -9 -8 -8 -8 -6 -6 -6 -6 -5 -5 -4 -4 ---------- Run | Yrd Mat Min Exi Min Mat Sto Rec Fac Was Fac DSF Fac Ext Fac Arm Machines Disabled 22 | . 2 . . . 1 3 . 6 . . . 1 5 1 3 Max in Single Turn 2 | . 1 . . . 1 1 . 2 . . . . 1 1 1 Garrison Access 3 | . . . . . 1 1 . . . . . . . 1 . Energy Cycler 1 | . . . . . . . . . . . . . 1 . . Machines Repaired . | . . . . . . . . . . . . . . . . Machines Dismantled 2 | . . . . . . 2 . . . . . . . . . Machines Sabotaged . | . . . . . . . . . . . . . . . . Overloaded Fab Kills . | . . . . . . . . . . . . . . . . Hacking | -11 -10 -10 -10 -9 -8 -8 -8 -6 -6 -6 -6 -5 -5 -4 -4 --------- Run | Yrd Mat Min Exi Min Mat Sto Rec Fac Was Fac DSF Fac Ext Fac Arm Machines Accessed 60 | . 3 . . . 8 8 7 8 . 1 . 6 13 4 2 Terminals 45 | . 3 . . . 6 7 3 4 . 1 . 4 12 3 2 Fabricators 3 | . . . . . . . . 1 . . . 2 . . . Repair Stations 1 | . . . . . . . . 1 . . . . . . . Recycling Units 5 | . . . . . . . 4 . . . . . 1 . . Scanalyzers 3 | . . . . . 1 . . 2 . . . . . . . Garrison Access 3 | . . . . . 1 1 . . . . . . . 1 . Total Hacks 195 | . 12 . . . 37 31 15 20 . 1 . 19 34 15 11 Successful 108 | . 4 . . . 27 17 10 14 . 1 . 7 21 6 1 Failed 86 | . 8 . . . 9 14 5 6 . . . 12 13 9 10 Catastrophic 8 | . . . . . 1 2 . . . . . 1 1 2 1 Database Lockouts 1 | . . . . . 1 . . . . . . . . . . Manual 66 | . 8 . . . 10 8 12 5 . . . 9 7 2 5 Terminals 152 | . 12 . . . 20 29 11 9 . 1 . 14 33 12 11 Fabricators 8 | . . . . . . . . 3 . . . 5 . . . Repair Stations 2 | . . . . . . . . 2 . . . . . . . Recycling Units 5 | . . . . . . . 4 . . . . . 1 . . Scanalyzers 22 | . . . . . 16 . . 6 . . . . . . . Garrison Access 6 | . . . . . 1 2 . . . . . . . 3 . Terminal Hacks 59 | . 2 . . . 9 14 3 4 . 1 . 3 17 5 1 Record 2 | . . . . . . . . . . . . . 1 1 . Robot Schematic 2 | . . . . . . 1 . . . . . . 1 . . Robot Analysis 10 | . 1 . . . 4 1 1 . . . . . 3 . . Prototype ID Bank 6 | . . . . . . 2 1 . . . . 1 1 1 . Open Door 8 | . . . . . . 2 . . . . . . 6 . . Open DSF 1 | . . . . . . . . . . 1 . . . . . Branch Access Points 3 | . . . . . 1 1 . . . . . 1 . . . Emergency Access Points 3 | . . . . . . 1 . 1 . . . . . . 1 Alert Level 6 | . . . . . 1 2 . 2 . . . . 1 . . Unreport Threat 3 | . . . . . . 2 . . . . . . 1 . . Locate Traps 4 | . . . . . 1 . . . . . . 1 1 1 . Disarm Traps 1 | . . . . . 1 . . . . . . . . . . Dispatch Records 1 | . . . . . . . 1 . . . . . . . . Reinforcement Status 1 | . . . . . . . . . . . . . 1 . . Registered Components 2 | . . . . . . 1 . . . . . . 1 . . Zone Layout 6 | . 1 . . . 1 1 . 1 . . . . . 2 . Fabricator Hacks 1 | . . . . . . . . 1 . . . . . . . Network Status 1 | . . . . . . . . 1 . . . . . . . Repair Station Hacks 2 | . . . . . . . . 2 . . . . . . . Scan Component 1 | . . . . . . . . 1 . . . . . . . Repair 1 | . . . . . . . . 1 . . . . . . . Recycling Unit Hacks 1 | . . . . . . . . . . . . . 1 . . Report Inventory 1 | . . . . . . . . . . . . . 1 . . Scanalyzer 18 | . . . . . 14 . . 4 . . . . . . . Insert Component 9 | . . . . . 7 . . 2 . . . . . . . Analyze 9 | . . . . . 7 . . 2 . . . . . . . Garrison Access Hacks 2 | . . . . . 1 . . . . . . . . 1 . Seal Access 2 | . . . . . 1 . . . . . . . . 1 . Unauthorized Hacks 25 | . 2 . . . 3 3 7 3 . . . 4 3 . . Terminals 17 | . 2 . . . 3 2 3 2 . . . 2 3 . . Botnet 17 | . 2 . . . 3 2 3 2 . . . 2 3 . . Fabricators 3 | . . . . . . . . 1 . . . 2 . . . Fabnet 3 | . . . . . . . . 1 . . . 2 . . . Repair Stations . | . . . . . . . . . . . . . . . . Recycling Units 4 | . . . . . . . 4 . . . . . . . . Reject 4 | . . . . . . . 4 . . . . . . . . Scanalyzers . | . . . . . . . . . . . . . . . . Garrison Access 1 | . . . . . . 1 . . . . . . . . . Jam 1 | . . . . . . 1 . . . . . . . . . Data Cores Recovered 1 | . . . . . . . . 1 . . . . . . . Used . | . . . . . . . . . . . . . . . . Hacking Detections 45 | . 2 . . . 7 6 3 8 . . . 6 8 3 2 Full Trace Events 3 | . . . . . . 1 . 1 . . . . 1 . . Feedback Events . | . . . . . . . . . . . . . . . . Feedback Blocked . | . . . . . . . . . . . . . . . . Robot Schematics Acquired 2 | . . . . . . 1 . . . . . . 1 . . Robots Built . | . . . . . . . . . . . . . . . . Authchips . | . . . . . . . . . . . . . . . . Time . | . . . . . . . . . . . . . . . . Total Robot Build Rating . | . . . . . . . . . . . . . . . . Part Schematics Acquired 7 | . . . . . 6 . . 1 . . . . . . . Parts Built . | . . . . . . . . . . . . . . . . Authchips . | . . . . . . . . . . . . . . . . Time . | . . . . . . . . . . . . . . . . Total Part Build Rating . | . . . . . . . . . . . . . . . . Parts Repaired 1 | . . . . . . . . 1 . . . . . . . Time 8 | . . . . . . . . 8 . . . . . . . Parts Recycled . | . . . . . . . . . . . . . . . . Recycled Matter . | . . . . . . . . . . . . . . . . Retrieved Matter . | . . . . . . . . . . . . . . . . Retrieved Components . | . . . . . . . . . . . . . . . . Parts Scanalyzed 9 | . . . . . 7 . . 2 . . . . . . . Part Schematics Acquired 7 | . . . . . 6 . . 1 . . . . . . . Parts Damaged 1 | . . . . . 1 . . . . . . . . . . Bothacking | -11 -10 -10 -10 -9 -8 -8 -8 -6 -6 -6 -6 -5 -5 -4 -4 ------------ Run | Yrd Mat Min Exi Min Mat Sto Rec Fac Was Fac DSF Fac Ext Fac Arm Used RIF Installer . | . . . . . . . . . . . . . . . . Robots Hacked 7 | . . . . . . . . . . . . 3 . . 4 Non-combat . | . . . . . . . . . . . . . . . . Combat 7 | . . . . . . . . . . . . 3 . . 4 Robot Hacks Applied . | . . . . . . . . . . . . . . . . Relay Couplers Released . | . . . . . . . . . . . . . . . . Fabnet Peak Effective % 7 | . . . . . . . . . . . . 3 3 7 7 Autooverrided 7 | . . . . . . . . . . . . 3 . . 4 Robots Rewired 33 | . . . . . . . 12 . . . . 1 9 . 11 Allies Hacked 3 | . . . . . . . . 1 . . . . 2 . . Hacks Repelled . | . . . . . . . . . . . . . . . . Allies | -11 -10 -10 -10 -9 -8 -8 -8 -6 -6 -6 -6 -5 -5 -4 -4 -------- Run | Yrd Mat Min Exi Min Mat Sto Rec Fac Was Fac DSF Fac Ext Fac Arm Total Allies 65 | . . 3 . . . 12 12 3 . . . 4 17 . 14 Largest Group 13 | . . 3 3 3 2 10 12 12 . . . 2 13 . 10 Highest-Rated Group 513 | . . 40 40 40 32 200 197 197 . . . 90 372 . 513 Highest-Rated Ally 137 | . . 16 16 16 16 31 27 31 . . . 54 41 . 137 Total Orders . | . . . . . . . . . . . . . . . . Ally Attacks 360 | . . . . 26 18 83 . 66 . . . 8 110 . 49 Total Damage 6981 | . . . . 325 273 1063 . 960 . . . 283 2451 . 1626 Kills 59 | . . . . 4 3 16 . 10 . . . 4 11 . 11 Allies Corrupted 1 | . . . . . . . . . . . . . 1 . . Allies Melted . | . . . . . . . . . . . . . . . . Intel | -11 -10 -10 -10 -9 -8 -8 -8 -6 -6 -6 -6 -5 -5 -4 -4 ------- Run | Yrd Mat Min Exi Min Mat Sto Rec Fac Was Fac DSF Fac Ext Fac Arm Robot Analysis Total 10 | . 1 . . . 4 1 1 . . . . . 3 . . Derelict Logs Recovered 2 | . . 1 . 1 . . . . . . . . . . . Drone Launches . | . . . . . . . . . . . . . . . . Drone Recoveries . | . . . . . . . . . . . . . . . . Exploration | -11 -10 -10 -10 -9 -8 -8 -8 -6 -6 -6 -6 -5 -5 -4 -4 ------------- Run | Yrd Mat Min Exi Min Mat Sto Rec Fac Was Fac DSF Fac Ext Fac Arm Turns Passed 12933 | 62 819 465 280 433 1429 1002 618 3976 120 36 80 1410 1068 368 767 Spaces Moved 7481 | 39 409 290 204 297 715 516 322 1966 87 71 71 849 732 490 423 Core 144 | 7 . . . . . . . . 38 71 26 . 2 . . Treads 122 | 17 88 1 . . . . . . . . . . 16 . . Legs 234 | . . . . . . . . . . . 20 196 . . 18 Wheels 5927 | 15 321 289 204 297 715 516 322 1966 49 . . 653 230 . 350 Hover 1054 | . . . . . . . . . . . 25 . 484 490 55 Flight . | . . . . . . . . . . . . . . . . Fastest Speed 50 | 50 140 135 135 135 135 145 145 125 50 50 50 110 50 51 70 Average Speed 129 | 109 145 138 135 135 146 145 145 160 99 50 73 129 79 55 105 Slowest Speed 320 | 160 200 320 135 135 190 145 145 230 160 50 120 190 240 70 190 Overloaded Moves . | . . . . . . . . . . . . . . . . Propulsion Burnouts . | . . . . . . . . . . . . . . . . Robots Hopped . | . . . . . . . . . . . . . . . . Cave-ins Triggered . | . . . . . . . . . . . . . . . . Exploration Rate (%) 48 | 4 58 51 61 69 54 78 65 42 68 3 81 18 83 14 33 Regions Visited 15 Branch Regions 7 Pre-discovered Areas . | . . . . . . . . . . . . . . . . Known Exits Taken 7 | . . . . . 1 1 1 . . 1 . 1 1 1 . Unknown Exits Taken 5 | 1 1 1 1 1 . . . . . . . . . . . Scrap Searched 2 | . . . . 2 . . . . . . . . . . . Spaces Dug 72 | . . . . . 15 . . 49 . . . 8 . . . Terrain Destroyed 299 | . 20 . . . 37 32 5 133 17 . . 8 27 1 19 Melee 8 | . . . . . . . . . . . . 8 . . . Projectile 75 | . . . . . 15 9 5 21 . . . . 6 . 19 AOE 211 | . 20 . . . 22 23 . 112 17 . . . 17 . . Terrain Rammed . | . . . . . . . . . . . . . . . . Walls Destroyed . | . . . . . . . . . . . . . . . . Machines Disabled . | . . . . . . . . . . . . . . . . Actions | -11 -10 -10 -10 -9 -8 -8 -8 -6 -6 -6 -6 -5 -5 -4 -4 --------- Run | Yrd Mat Min Exi Min Mat Sto Rec Fac Was Fac DSF Fac Ext Fac Arm Total 9582 | 57 503 328 209 321 985 651 451 2441 100 70 91 1065 1063 568 679 Wait 609 | . 1 1 2 11 172 37 15 49 . . 3 82 65 50 121 Move 7467 | 38 408 289 203 296 714 515 321 1966 86 70 70 848 731 489 423 Hop . | . . . . . . . . . . . . . . . . Pick Up 238 | 10 22 7 2 5 16 12 1 86 1 . 6 34 16 4 16 Fast Attach 41 | . . . . 1 . 4 . 7 . . 4 4 13 4 4 Attach 147 | 6 4 6 . 2 11 1 . 48 2 . 3 20 23 5 16 Detach 16 | . . . 2 . 2 . . 1 . . . 2 7 1 1 Swap 55 | 3 3 2 . . 4 6 . 21 1 . 1 7 4 . 3 Drop 128 | . 1 3 . 2 10 15 1 59 1 . 1 13 13 3 6 Fire 543 | . 64 20 . 4 56 35 11 196 9 . . 21 88 7 32 Melee 56 | . . . . . . . . . . . 3 32 21 . . Ram . | . . . . . . . . . . . . . . . . Kick . | . . . . . . . . . . . . . . . . Crush . | . . . . . . . . . . . . . . . . Escape Stasis 34 | . . . . . . . . 8 . . . . 21 5 . Rewire 221 | . . . . . . . 101 . . . . 2 61 . 57 Trap . | . . . . . . . . . . . . . . . . Miscellaneous 27 | . . . . . . 26 1 . . . . . . . . Route ------- -11/Scrapyard -10/Materials (discovered 3 exits: [*Mat x2] / [*Min]) -10/Mines (discovered 2 exits: [*Mat] / [*Exi]) -10/Exiles (discovered 2 exits: [*Min x2]) -9/Mines -8/Materials (discovered 3 exits: [*Fac] / *Sto x2) -8/Storage -8/Recycling -6/Factory -6/Waste -6/Factory -6/DSF -5/Factory (discovered 4 exits: Upp x2 / *Ext x2) -5/Extension (discovered 2 exits: *Fac / *Cet) -4/Factory (discovered 2 exits: *Res / *Arm) -4/Armory History --------- Turn | Location | Event 20 | -11/Scrapyard | Discovered new exit (range 15) 63 | -11/Scrapyard | Entered Materials 300 | -10/Materials | Build established: Mutant 452 | -10/Materials | Discovered new exit (range 9) 535 | -10/Materials | Discovered new exit (range 9) 631 | -10/Materials | Core integrity fell below 50% 651 | -10/Materials | Lost 3 parts (1p1n1w) 678 | -10/Materials | Discovered new exit (range 13) 882 | -10/Materials | Entered Mines 920 | -10/Mines | Learned Materials terminal intel 1046 | -10/Mines | Deemed a non-threat by the Exiles lab entrance 1047 | -10/Mines | Discovered new exit (range 5) 1076 | -10/Mines | Received a Rocket Launcher from a helpful Derelict 1100 | -10/Mines | Discovered new exit (range 11) 1146 | -10/Mines | Core integrity fell below 20% 1179 | -10/Mines | Lost 5 parts (2p2n1w) 1285 | -10/Mines | Assisted by bots powering up and referring to "LRC-V3" 1347 | -10/Mines | Entered Exiles 1347 | -10/Exiles | Accompanied by 3 allies 1369 | -10/Exiles | Discovered new exit (range 15) 1381 | -10/Exiles | Met 8R-AWN 1402 | -10/Exiles | Met EX-HEX 1450 | -10/Exiles | Met EX-BIN 1470 | -10/Exiles | Met EX-DEC 1612 | -10/Exiles | Discovered new exit (range 11) 1627 | -10/Exiles | Entered Mines 1627 | -9/Mines | Accompanied by 3 allies 1635 | -9/Mines | Met a Derelict bent on vengeance 1706 | -9/Mines | Learned Materials garrison access intel 1717 | -9/Mines | Found a damaged Exp. Sensor Array with a note attached 1720 | -9/Mines | Found Prototype Device 1975 | -9/Mines | YI-UF0 nonchalantly dropped a Grenade Launcher on the ground 2030 | -9/Mines | Discovered new exit (range 15) 2060 | -9/Mines | Entered Materials 2060 | -8/Materials | Accompanied by 2 allies 2060 | -8/Materials | Evolved 4 slots: Utility x3, Weapon x1 2061 | -8/Materials | Loaded intel: 12 terminal locations 2062 | -8/Materials | Loaded intel: 1 garrison access location 2063 | -8/Materials | Discovered new exit (range 15) 2353 | -8/Materials | Identified Exp. Sensor Array 2370 | -8/Materials | Identified exit to Storage 2650 | -8/Materials | Build established: Scavenger-Skirmisher 3179 | -8/Materials | Discovered new exit (range 16) 3328 | -8/Materials | Central database locked down 3489 | -8/Materials | Entered Storage 4120 | -8/Storage | Identified exit to Recycling 4121 | -8/Storage | Assisted by bots powering up and referring to "LRC-V3" 4423 | -8/Storage | Met a pair of Derelict thieves 4426 | -8/Storage | Build established: Commander-Skirmisher 4485 | -8/Storage | Used back door to open Recycling access 4491 | -8/Storage | Entered Recycling 4506 | -8/Recycling | Lost 10 allies 4763 | -8/Recycling | Build established: Scavenger-Skirmisher 5048 | -8/Recycling | Discovered new exit (range 15) 5102 | -8/Recycling | Identified exit to Factory 5105 | -8/Recycling | Build established: Commander-Skirmisher 5109 | -8/Recycling | Entered Factory 5109 | -6/Factory | Accompanied by 12 allies 5109 | -6/Factory | Evolved 4 slots: Utility x3, Weapon x1 5422 | -6/Factory | Build established: Commander-Tank 5687 | -6/Factory | P-60 Hacker assimilated allied Transporter 3b 5812 | -6/Factory | Spotted B-75 Beast 5940 | -6/Factory | Lost 4 allies 5976 | -6/Factory | Destroyed B-75 Beast 6009 | -6/Factory | Lost 14 parts (1p2n5u6w) 6144 | -6/Factory | Lost 7 parts (1p1n4u1w) 6607 | -6/Factory | Build established: Scavenger-Gunner 6765 | -6/Factory | Discovered new exit (range 11) 6788 | -6/Factory | Identified exit to Factory 7379 | -6/Factory | Core integrity fell below 50% 7909 | -6/Factory | First assault squad dispatched 7951 | -6/Factory | Repaired Huge Storage Unit 8098 | -6/Factory | System corruption reached 10% 8128 | -6/Factory | Lost 4 parts (1n3u) 8668 | -6/Factory | Build established: Gunner 8930 | -6/Factory | Garrison activated, responded to threat 9085 | -6/Factory | Sucked down chute 9085 | -6/Factory | Entered Waste 9089 | -6/Waste | Spotted C-40 Crusher 9095 | -6/Waste | Destroyed C-40 Crusher 9109 | -6/Waste | Spotted C-40 Crusher 9111 | -6/Waste | Spotted C-40 Crusher 9113 | -6/Waste | Spotted C-40 Crusher 9129 | -6/Waste | Crushed by Compactor (1 part destroyed, 1 dropped) 9132 | -6/Waste | Crushed by Compactor (1 part destroyed, 2 dropped) 9163 | -6/Waste | Lost 4 parts (2u2w) 9170 | -6/Waste | Spotted C-40 Crusher 9170 | -6/Waste | Spotted C-40 Crusher 9182 | -6/Waste | Crushed by Compactor (1 part destroyed, 1 dropped) 9185 | -6/Waste | Crushed by Compactor (1 part destroyed, 2 dropped) 9195 | -6/Waste | Discovered new exit (range 15) 9205 | -6/Waste | Identified exit to Factory 9205 | -6/Waste | Entered Factory 9216 | -6/Factory | Lost 4 parts (3n1u) 9237 | -6/Factory | Identified exit to DSF 9241 | -6/Factory | Entered DSF 9241 | -6/DSF | Encountered a pitched battle between 0b10 and Warlord forces 9247 | -6/DSF | Spotted B-75 Beast 9282 | -6/DSF | Discovered exit to Factory (range 14) 9294 | -6/DSF | Sterilization system engaged 9314 | -6/DSF | Ambient heat levels rising (+10) 9317 | -6/DSF | Core integrity fell below 20% 9321 | -6/DSF | Entered Factory 9321 | -5/Factory | Evolved 2 slots: Utility x2 9341 | -5/Factory | Lost 10 allies 9551 | -5/Factory | Build established: Scavenger-Mutant 10113 | -5/Factory | Identified exit to Upper Caves 10113 | -5/Factory | Identified exit to Extension 10157 | -5/Factory | Build established: Scavenger-Skirmisher 10253 | -5/Factory | Lost 6 parts (1p1n2u2w) 10326 | -5/Factory | Lost 3 parts (2n1w) 10680 | -5/Factory | Local machine network offline 10705 | -5/Factory | Build established: Skirmisher 10731 | -5/Factory | Entered Extension 10731 | -5/Extension | Accompanied by 1 ally 10739 | -5/Extension | Disrupted transfer network 10777 | -5/Extension | Rescued a captive Derelict 10817 | -5/Extension | Rescued a captive Derelict 10889 | -5/Extension | Rescued a captive Derelict 10982 | -5/Extension | Rescued a captive Derelict 11116 | -5/Extension | P-70 Sage assimilated allied 19-7ME(g) 11119 | -5/Extension | Core integrity fell below 50% 11120 | -5/Extension | Lost 3 allies 11151 | -5/Extension | Rescued a captive Derelict 11171 | -5/Extension | Spotted B-75 Beast 11177 | -5/Extension | Spotted B-75 Beast 11188 | -5/Extension | Allies destroyed B-75 Beast 11211 | -5/Extension | Lost 5 allies 11250 | -5/Extension | Lost 16 parts (1p4n4u7w) 11255 | -5/Extension | Lost 5 allies 11270 | -5/Extension | Core integrity fell below 20% 11342 | -5/Extension | Lost 8 parts (2n3u3w) 11605 | -5/Extension | Rescued a captive Derelict 11618 | -5/Extension | Energy Cycler disabled 11619 | -5/Extension | Rescued a captive Derelict 11619 | -5/Extension | Rescued a captive Derelict 11712 | -5/Extension | Lost 3 allies 11783 | -5/Extension | Discovered new exit (range 10) 11784 | -5/Extension | Discovered new exit (range 6) 11787 | -5/Extension | Identified exit to Cetus 11789 | -5/Extension | Identified exit to Factory 11799 | -5/Extension | Entered Factory 11799 | -4/Factory | Evolved 2 slots: Propulsion x2 11956 | -4/Factory | Spotted B-86 Titan 12001 | -4/Factory | Discovered new exit (range 7) 12004 | -4/Factory | Identified exit to Research 12041 | -4/Factory | Build established: Hacker-Scout 12160 | -4/Factory | Discovered new exit (range 12) 12164 | -4/Factory | Core integrity fell below 50% 12167 | -4/Factory | Identified exit to Armory 12167 | -4/Factory | Entered Armory 12193 | -4/Armory | Lost 11 parts (1p3n4u3w) 12607 | -4/Armory | Lost 5 allies 12768 | -4/Armory | P-70 Sage assimilated allied Warrior 7a 12786 | -4/Armory | Local machine network offline 12818 | -4/Armory | Lost 4 allies 12882 | -4/Armory | Core integrity fell below 20% 12934 | -4/Armory | Destroyed by X-77 Beamer with Gatling Laser Last Messages --------------- Critical hit (Destroy). Arm. Medium Treads destroyed. Slug penetrates Wall. Penetrated by Slug. Adv. Hacking Suite destroyed. Extracted 11 energy. Extracted 1 energy. Penetrated by Slug. H-71 Marshal destroyed. Extracted 11 energy. Slug penetrates Wall. Extracted 1 energy. Acquired Com. Battery. System corrupted: Component data lost. Penetrated by Slug. Adv. Terrain Scanner destroyed. Penetrated by Slug. Myomer Leg destroyed. X-77 Beamer knocked back. Slug penetrates Wall. Map ----- +----------------------------------------------------+ | | | | | | | | | | | | | | | | | ???????????????????????????????????????????????#?? | | ?????????????????????????????????#???????????????# | | ???????????????????????????????????#?????????????? | | ?????????????????????????????????????????????????? | | ???????????????????????????????????######??????? ? | | ???????????????????????????????????? ???????? | | ??????????????????????????????? ????? ????? ?? | | ???????????????????????######?######??# ??????" | | ???????????????????????# #?? + ??????? | | ???????????????????????# #?????" " ?????? | | ???????????????????????# #?????" " ###### | | ???????????????????????# #?????" + %=% | | ???????????????????????+ #???"?????###" % * / | | ???????????????????????# #?????? ????## ###### | | ???????????????????????# #?????"??????# ?????? | | ???????????????????????# #????????????# ?????? | | ???????????????????????# % ?????????????# ????#? | | ????????????????????????#@#??##########?? !??????? | | ????????????????????????# ;#?# #?? ??????? | | ????????????????????????hx##?# #?##+??#???? | | ????????????????????????; #### """ "" #????????#?? | | ???????????????????????##YY # """ "" #??????????? | | ????????????????????????# # """ T" #?????????#? | | ??????????????????# ##### # """ "" #?##++##???? | | ??????????????????# x / """ " #?# #?#?? | | ??????????????????# ####### # #?? #??#? | | ???????????????????????#####"#####"#""#### "#???# | | ???????????????????????# % # "#???? | | ???????????????????????# % ]]] # ###### | | ???????????????????????# % ]]%"! | | ???????????????????????# ]] =" % | | ???????????????????????# % %#% "##"## | | ???????????????????????# % " ##? ? | | ???????????????????????# % " #?? | | ???????????????????????################"""% #?#"" | | ???????????????????????????????????????### %#???!! | | ????????????????????????????????????????? % ?!!? | | ????????????????????????????????????????? ###? | | ???????????????????????????????????????? #??? | | ???????????????????????????????????????? #??? | | ???????????????????????????????????????? #??? | | ???????????????????????????????????????# ???? | +----------------------------------------------------+ Best States ------------- Heat Dissipation 71 Energy Generation 21 Energy Capacity 900 Matter Stores 300 Matter Capacity 300 Sight Range 22 Robot Scan Range 20 Terrain Scan Range 20 Terrain Scan Density 10 Jamming Range 12 Additional Mass Support 9 Base Temperature (-) 150 Armor Coverage 600 Resistance: KI 30 Resistance: TH 10 Propulsion Shielding 33 Evasion (%) 55 Targeting Accuracy 8 Melee Accuracy 8 Target Analysis 6 Core Analysis 6 Recoil Reduction 2 Offensive Hacking 30 Defensive Hacking 22 Item Schematics ----------------- Hacking Suite | -8/Materials | Scanalyzed Lgt. Armor Plating | -8/Materials | Scanalyzed Assault Cannon | -8/Materials | Scanalyzed Med. Battery | -8/Materials | Scanalyzed ECM Suite | -8/Materials | Scanalyzed Adv. EMP Blaster | -8/Materials | Scanalyzed Hrd. Medium Armor Plating | -6/Factory | Scanalyzed Robot Schematics ------------------ Y-45 Defender | -8/Storage | Hacked Y-54 Guardian | -5/Extension | Hacked Fabricated ------------ Nothing Alien Tech Used ----------------- None Achievements -------------- Preemptive Strike Challenges ------------ None Game ------ Seed KineticBladeNetwork Manual? 0 Play Time 03:13:06 Cumulative 95.6 hours Start 2024.05.11 @ 20:39:07 End 2024.05.12 @ 05:57:20 Sessions 7 Manual Loads 0 Difficulty Rogue Special Mode None Game No. 98 Rogue 89 Adventurer 9 Explorer 0 Win Type - Total 0 Types 0/0/0/0/0/0/0/0/0 Lore% 47 Gallery% 59 Achievement% 45 Wizard Run 0 Options --------- Layout 1 ASCII 0 Keyboard 0 Movement Numpad Keybinds 0 Fullscreen 1 Font 24/Smallcaps Map View 50x35 Zoom Use 0% Tactical HUD 0 Map Filters NONE Filters NONE Steam 1 RUN: 09140576-386c-41dd-bda6-239d9300fde4